Cogmind - Beta 13 @@@ ROGUE MODE // 2024.06.07 @ 23:48:01 Player: Teluna Result: Destroyed by D-53 Grenadier with Mini Grenade Launcher Performance ------------- Evolutions (0) 0 Regions Visited (4) 800 Robots Destroyed (54) 270 Value Destroyed (944) 944 Prototype IDs (2) 40 Alien Tech Used (0) 0 Bonus (251) 251 TOTAL SCORE: 2305 Bonus ------- Aligned with FarCom 300 Friendly Fire -49 Cogmind --------- Core Integrity 0/250 Matter 267/300 Energy 100/100 System Corruption 1% Temperature Cool (0) Movement Core (400) Ox7 Location -9/Mines Parts ------- > --- POWER (1) -------- (None) > --- PROPULSION (2) --- (None) > --- UTILITY (2) ------ Large Storage Unit > --- WEAPON (2) ------- Flail > --- INVENTORY (15) --- Ion Engine Fission Core Fission Core Carbon-fiber Leg Improved Heat Sink Large Storage Unit Structural Scanner Terrain Scan Processor Hardened Light Armor Plating Hardened Light Armor Plating Hardened Light Armor Plating AWS/Autocannon Peak State ------------ > --- POWER ------------ Ion Engine > --- PROPULSION ------- Aluminum Leg Aluminum Leg > --- UTILITY ---------- Large Storage Unit Hardened Light Armor Plating > --- WEAPON ----------- Rocket Launcher Flail > --- INVENTORY -------- Ion Engine Fission Core Fission Core Aluminum Leg Carbon-fiber Leg Improved Heat Sink Large Storage Unit Structural Scanner Terrain Scan Processor Hardened Light Armor Plating Hardened Light Armor Plating Hardened Light Armor Plating AWS/Autocannon [Rating: 15] Favorites ----------- Power Ion Engine Engine Ion Engine Propulsion Aluminum Leg Leg Aluminum Leg Utility Large Storage Unit Device Structural Scanner Storage Large Storage Unit Protection Hardened Light Armor Plating Weapon Rocket Launcher Ballistic Gun Assault Rifle Launcher Rocket Launcher Special Weapon Mining Laser Impact Weapon Flail Build | -11 -10 -10 -10 -9 ------- Run | Yrd Mat Min Exi Min Slots Evolved . | . . . . . Power . | . . . . . Propulsion . | . . . . . Utility . | . . . . . Weapon . | . . . . . Parts Attached 41 | 7 18 11 2 3 Power 5 | 1 3 1 . . Engine 5 | 1 3 1 . . Core . | . . . . . Reactor . | . . . . . Propulsion 8 | 2 1 4 . 1 Treads . | . . . . . Leg 8 | 2 1 4 . 1 Wheel . | . . . . . Hover . | . . . . . Flight . | . . . . . Utility 7 | 2 1 2 . 2 Device 3 | 1 . 2 . . Storage 2 | 1 1 . . . Processor . | . . . . . Hackware . | . . . . . Protection 2 | . . . . 2 Artifact . | . . . . . Weapon 21 | 2 13 4 2 . Energy Gun . | . . . . . Energy Cannon . | . . . . . Ballistic Gun 2 | 2 . . . . Ballistic Cannon . | . . . . . Launcher 8 | . 6 2 . . Special Weapon 4 | . 2 1 1 . Impact Weapon 7 | . 5 1 1 . Slashing Weapon . | . . . . . Piercing Weapon . | . . . . . Special Melee Weapon . | . . . . . Unidentified Prototypes . | . . . . . Parts Lost 12 | . 5 1 . 6 Power 2 | . 1 . . 1 Propulsion 5 | . 2 . . 3 Utility 3 | . 1 1 . 1 Weapon 2 | . 1 . . 1 Highest Loss Streak 6 | . 4 1 . 6 To Critical Strikes . | . . . . . Average Slot Usage (%) 89 | . 81 90 99 95 Engine 13 | . 13 13 14 14 Leg 23 | . 20 23 28 28 Device 8 | . 4 9 14 . Storage 14 | . 14 14 14 14 Launcher 16 | . 13 22 14 9 Special Weapon 3 | . 2 4 5 . Impact Weapon 7 | . 11 . 7 14 Naked Turns . | . . . . . Heaviest Build 36 | 12 33 34 34 36 Greatest Support 20 | 20 20 20 20 20 Greatest Overweight (x) 3 | . 3 3 1 2 Average Overweight (x) 1 | . 1 1 1 1 Largest Inventory Capacity 15 | 8 15 15 15 15 Average Capacity 14 | 7 14 15 15 15 Most Carried 15 | 3 13 15 15 15 Average Carried 12 | 1 10 13 14 14 Final Capacity 15 | 8 15 15 15 15 Final Carried 15 | 1 12 15 15 14 Class Distribution -------------------- 100% | Mutant Dominant Class ---------------- Mutant | -10/Materials Mutant | -10/Mines Mutant | -10/Exiles Mutant | -9/Mines Resources | -11 -10 -10 -10 -9 ----------- Run | Yrd Mat Min Exi Min Matter Collected 1138 | 362 368 350 58 . Remotely . | . . . . . Salvage Created 1319 | 160 493 618 . 48 Parts 92 | 13 44 35 . . Haulers Intercepted 1 | . 1 . . . Recyclers Shooed 2 | 1 . 1 . . Parts Field Recycled . | . . . . . Retrieved Matter . | . . . . . Parts Self-Destructed . | . . . . . Prevented . | . . . . . Kills | -11 -10 -10 -10 -9 ------- Run | Yrd Mat Min Exi Min Combat Hostiles Destroyed 25 | . 11 7 . 7 Melee 2 | . 2 . . . AOE 19 | . 6 7 . 6 Classes Destroyed 11 | 2 6 1 . 2 Worker 2 | . 2 . . . Builder 11 | . 6 5 . . Tunneler 10 | 4 1 5 . . Hauler 1 | . 1 . . . Recycler 7 | 1 2 4 . . Mechanic 1 | . . 1 . . Watcher 3 | . 3 . . . Swarmer 3 | . 3 . . . Grunt 15 | . 8 7 . . Duelist 1 | . . . . 1 Assembled 6 | . . . . 6 Best Kill Streak 7 | 2 5 6 . 7 Combat Bots Only 7 | . 3 4 . 7 Max Kills in Single Turn 6 | 1 3 6 . 5 Gunslinging . | . . . . . Exploded 5 | . 2 4 . 5 Melee 1 | . 1 . . . Uniques/NPCs Destroyed . | . . . . . Combat | -11 -10 -10 -10 -9 -------- Run | Yrd Mat Min Exi Min Hostile Shots Fired 101 | . 57 6 . 38 Missed 24 | . 16 1 . 7 Damage Taken 1439 | . 570 121 . 748 Core 256 | . 92 16 . 148 Absorbed by Shields . | . . . . . Core Remaining (%) 100 | 100 . . . . Volleys Fired 71 | 23 24 21 . 3 Largest 2 | 2 2 2 . 1 Hottest 100 | 40 100 100 . 33 Shots Fired 104 | 46 30 25 . 3 Gun 46 | 46 . . . . Cannon . | . . . . . Launcher 46 | . 25 18 . 3 Special 12 | . 5 7 . . Kinetic 46 | 46 . . . . Thermal 12 | . 5 7 . . Explosive 46 | . 25 18 . 3 Electromagnetic . | . . . . . Robot Hit Streak 8 | 8 5 4 . 1 Robot Miss Streak 3 | 2 3 1 . 3 Penetration Max . | . . . . . Secondary Targets . | . . . . . Shots Hit Robots 74 | 31 28 12 . 3 Core Hits 73 | 8 28 23 . 14 Critical Kills 1 | . 1 . . . Critical Parts Destroyed 5 | 1 2 1 . 1 Critical Strikes 6 | 1 3 1 . 1 Destroy 1 | 1 . . . . Smash 5 | . 3 1 . 1 Melee Attacks 30 | . 21 5 . 4 Impact 30 | . 21 5 . 4 Slashing . | . . . . . Piercing . | . . . . . Sneak Attacks 3 | . 1 2 . . Combat Hostiles . | . . . . . Follow-up Attacks 1 | . 1 . . . Damage Inflicted 4022 | 308 1729 1357 . 628 Guns 308 | 308 . . . . Cannons . | . . . . . Explosions 2835 | . 1155 1135 . 545 Melee 807 | . 526 198 . 83 Ramming . | . . . . . Kinetic 308 | 308 . . . . Thermal 155 | . 48 107 . . Explosive 2752 | . 1155 1052 . 545 Electromagnetic . | . . . . . Impact 807 | . 526 198 . 83 Slashing . | . . . . . Piercing . | . . . . . Highest Corruption 1 | . 1 1 1 1 Average Corruption 1 | . 1 1 1 1 Corruption Purged . | . . . . . Corruption Blocked . | . . . . . Effects 18 | . . 9 9 . Message Errors 8 | . . 4 4 . Matter Fused 2 | . . . 2 . Heat Flow Errors 3 | . . 2 1 . Energy Discharges 4 | . . 3 1 . Data Loss (minor) 1 | . . . 1 . Overload Shots . | . . . . . Overflow Damage 337 | . 117 168 . 52 Projectiles 22 | . . 22 . . Explosions 75 | . 12 42 . 21 Melee 240 | . 105 104 . 31 Knockbacks 4 | . 2 1 . 1 Impact 4 | . 2 1 . 1 Kinetic . | . . . . . Secondary . | . . . . . Self-Inflicted Damage 185 | . 113 54 . 18 Shots 9 | . 4 4 . 1 Rammed . | . . . . . Targets Rammed . | . . . . . Kicked . | . . . . . Crushed . | . . . . . Highest Temperature 275 | . 56 230 275 66 Average Temperature 41 | . 13 39 143 38 Received Heat Transfer 342 | . 243 39 . 60 Siege Activations . | . . . . . Robots Corrupted . | . . . . . Combat Hostiles . | . . . . . Parts Fried 6 | . 2 2 . 2 Impact Corruptions 14 | . 7 5 . 2 Robots Melted . | . . . . . Combat Hostiles . | . . . . . Parts Melted . | . . . . . Heat Transferred 250 | . 100 150 . . Parts Sabotaged . | . . . . . Parts Stolen . | . . . . . Parts Stripped . | . . . . . Power Chain Reactions . | . . . . . Alert | -11 -10 -10 -10 -9 ------- Run | Yrd Mat Min Exi Min Peak Influence 374 | 25 374 167 . 68 Initial 25 | . 16 25 . . Average 106 | 11 142 78 . 37 Maximum Alert Level 1 | . 1 . . . Low Security (%) 86 | 100 73 100 . 100 Level 1 13 | . 26 . . . Level 2 . | . . . . . Level 3 . | . . . . . Level 4 . | . . . . . Level 5 . | . . . . . High Security . | . . . . . Max Security . | . . . . . Squads Dispatched 3 | . 2 1 . . Investigation 1 | . 1 . . . Extermination . | . . . . . Reinforcement 1 | . 1 . . . Assault 1 | . . 1 . . Garrison . | . . . . . Intercept . | . . . . . Searches Triggered . | . . . . . Construction Impeded . | . . . . . Haulers Reinforced . | . . . . . Active Scanning Responses . | . . . . . Cargo Convoy Interrupts . | . . . . . Stealth | -11 -10 -10 -10 -9 --------- Run | Yrd Mat Min Exi Min Distress Signals 2 | . 2 . . . Communications Jammed . | . . . . . Distress Signals . | . . . . . Times Spotted 46 | . 15 9 . 22 Peak Tracking Total 18 | . 4 4 . 18 Tactical Retreats 2 | . 1 . . 1 Traps | -11 -10 -10 -10 -9 ------- Run | Yrd Mat Min Exi Min Traps Triggered 2 | . 2 . . . Indirectly . | . . . . . Trap Hack Attempts . | . . . . . Triggered . | . . . . . Disarmed . | . . . . . Reprogrammed . | . . . . . Reused . | . . . . . Traps Extracted . | . . . . . Installed . | . . . . . Triggered . | . . . . . Machines | -11 -10 -10 -10 -9 ---------- Run | Yrd Mat Min Exi Min Machines Disabled 6 | . 4 2 . . Max in Single Turn 2 | . 1 2 . . Machines Repaired . | . . . . . Machines Dismantled . | . . . . . Machines Sabotaged . | . . . . . Overloaded Fab Kills . | . . . . . Hacking | -11 -10 -10 -10 -9 --------- Run | Yrd Mat Min Exi Min Machines Accessed 9 | . 4 1 4 . Terminals 5 | . 4 1 . . Fabricators . | . . . . . Repair Stations . | . . . . . Recycling Units . | . . . . . Scanalyzers . | . . . . . Garrison Access . | . . . . . Total Hacks 62 | . 12 1 49 . Successful 54 | . 4 1 49 . Failed 8 | . 8 . . . Catastrophic 2 | . 2 . . . Database Lockouts . | . . . . . Manual 5 | . 3 . 2 . Terminals 13 | . 12 1 . . Fabricators . | . . . . . Repair Stations . | . . . . . Recycling Units . | . . . . . Scanalyzers . | . . . . . Garrison Access . | . . . . . Terminal Hacks 54 | . 4 1 49 . Record 49 | . . . 49 . Prototype ID Bank 1 | . 1 . . . Level Access Points 1 | . 1 . . . Locate Traps 1 | . 1 . . . Zone Layout 2 | . 1 1 . . Fabricator Hacks . | . . . . . Repair Station Hacks . | . . . . . Recycling Unit Hacks . | . . . . . Scanalyzer . | . . . . . Garrison Access Hacks . | . . . . . Unauthorized Hacks . | . . . . . Terminals . | . . . . . Fabricators . | . . . . . Repair Stations . | . . . . . Recycling Units . | . . . . . Scanalyzers . | . . . . . Garrison Access . | . . . . . Data Cores Recovered . | . . . . . Used . | . . . . . Hacking Detections 4 | . 3 1 . . Full Trace Events . | . . . . . Feedback Events . | . . . . . Feedback Blocked . | . . . . . Robot Schematics Acquired . | . . . . . Robots Built . | . . . . . Authchips . | . . . . . Time . | . . . . . Total Robot Build Rating . | . . . . . Part Schematics Acquired . | . . . . . Parts Built . | . . . . . Authchips . | . . . . . Time . | . . . . . Total Part Build Rating . | . . . . . Parts Repaired . | . . . . . Time . | . . . . . Parts Recycled . | . . . . . Recycled Matter . | . . . . . Retrieved Matter . | . . . . . Retrieved Components . | . . . . . Parts Scanalyzed . | . . . . . Part Schematics Acquired . | . . . . . Parts Damaged . | . . . . . Bothacking | -11 -10 -10 -10 -9 ------------ Run | Yrd Mat Min Exi Min Used RIF Installer . | . . . . . Robots Hacked . | . . . . . Non-combat . | . . . . . Combat . | . . . . . Robot Hacks Applied . | . . . . . Relay Couplers Released . | . . . . . Fabnet Peak Effective % . | . . . . . Robots Rewired . | . . . . . Allies Hacked . | . . . . . Hacks Repelled . | . . . . . Allies | -11 -10 -10 -10 -9 -------- Run | Yrd Mat Min Exi Min Total Allies 2 | . . 2 . . Largest Group 1 | . . 1 . . Highest-Rated Group 31 | . . 31 . . Highest-Rated Ally 31 | . . 31 . . Total Orders . | . . . . . Ally Attacks 4 | . . 4 . . Total Damage 64 | . . 64 . . Kills . | . . . . . Allies Corrupted . | . . . . . Allies Melted . | . . . . . Intel | -11 -10 -10 -10 -9 ------- Run | Yrd Mat Min Exi Min Robot Analysis Total . | . . . . . Derelict Logs Recovered 2 | . . 2 . . Drone Launches . | . . . . . Drone Recoveries . | . . . . . Exploration | -11 -10 -10 -10 -9 ------------- Run | Yrd Mat Min Exi Min Turns Passed 4767 | 242 1766 1366 1363 30 Spaces Moved 2091 | 139 663 576 708 5 Core 5 | 5 . . . . Treads . | . . . . . Legs 2086 | 134 663 576 708 5 Wheels . | . . . . . Hover . | . . . . . Flight . | . . . . . Fastest Speed 50 | 50 120 190 190 190 Average Speed 205 | 117 228 220 190 204 Slowest Speed 330 | 120 330 330 190 260 Overloaded Moves . | . . . . . Propulsion Burnouts . | . . . . . Robots Hopped . | . . . . . Cave-ins Triggered . | . . . . . Exploration Rate (%) 57 | 7 88 91 94 8 Regions Visited 4 Branch Regions 3 Pre-discovered Areas 1 | . . . 1 . Known Exits Taken 1 | . . 1 . . Unknown Exits Taken 3 | 1 1 . 1 . Scrap Searched 1 | . . 1 . . Spaces Dug 48 | . 24 24 . . Terrain Destroyed 408 | . 188 187 . 33 Melee . | . . . . . Projectile 7 | . 2 5 . . AOE 401 | . 186 182 . 33 Terrain Rammed . | . . . . . Walls Destroyed . | . . . . . Machines Disabled . | . . . . . Actions | -11 -10 -10 -10 -9 --------- Run | Yrd Mat Min Exi Min Total 2389 | 176 841 627 729 16 Wait 100 | . 88 2 10 . Move 2087 | 138 662 575 707 5 Hop . | . . . . . Pick Up 42 | 8 21 8 4 1 Fast Attach 3 | . . 3 . . Attach 19 | 7 5 3 2 2 Detach . | . . . . . Swap 19 | . 13 5 . 1 Drop 19 | . 8 5 6 . Fire 71 | 23 24 21 . 3 Melee 29 | . 20 5 . 4 Ram . | . . . . . Kick . | . . . . . Crush . | . . . . . Escape Stasis . | . . . . . Rewire . | . . . . . Trap . | . . . . . Miscellaneous . | . . . . . Route ------- -11/Scrapyard -10/Materials (discovered 4 exits: *Mat x3 / *Min) -10/Mines (discovered 4 exits: *Mat x2 / *Exi / [*Sub]) -10/Exiles (discovered 2 exits: [*Min x2]) -9/Mines (discovered 1 exit: [*Mat]) History --------- Turn | Location | Event 4 | -11/Scrapyard | Discovered new exit (range 15) 243 | -11/Scrapyard | Entered Materials 306 | -10/Materials | Build established: Mutant 426 | -10/Materials | Identified exit to Materials 1090 | -10/Materials | Lost 4 parts (1p2n1w) 1979 | -10/Materials | Discovered new exit (range 7) 2009 | -10/Materials | Entered Mines 2042 | -10/Mines | Discovered exit to Materials (range 5) 2042 | -10/Mines | Discovered exit to Materials (range 6) 2183 | -10/Mines | Received a Mining Laser from a helpful Derelict 2618 | -10/Mines | Met a Derelict testing a Signal Generator 2738 | -10/Mines | Discovered new exit (range 11) 3020 | -10/Mines | Identified exit to Exiles 3120 | -10/Mines | Learned Materials terminal intel 3320 | -10/Mines | Deemed a non-threat by the Exiles lab entrance 3375 | -10/Mines | Entered Exiles 3427 | -10/Exiles | Met 8R-AWN 3459 | -10/Exiles | Met EX-HEX 3569 | -10/Exiles | Met EX-DEC 3624 | -10/Exiles | Learned location of Zion (-7) 3764 | -10/Exiles | Met EX-BIN 3816 | -10/Exiles | Aligned with FarCom system 3817 | -10/Exiles | Given EX-Vault access code 3950 | -10/Exiles | Opened EX-Vault 3972 | -10/Exiles | Found Prototype Ballistic Cannon 4012 | -10/Exiles | Warned to stay clear of 0b10 Research branches 4197 | -10/Exiles | Discovered new exit (range 14) 4384 | -10/Exiles | Visited The Gauntlet 4719 | -10/Exiles | Discovered new exit (range 12) 4738 | -10/Exiles | Left Exiles lab with AWS/Autocannon 4738 | -10/Exiles | Entered Mines 4739 | -9/Mines | Assembled infested the area 4753 | -9/Mines | Core integrity fell below 50% 4759 | -9/Mines | Discovered new exit (range 9) 4766 | -9/Mines | Core integrity fell below 20% 4768 | -9/Mines | Destroyed by D-53 Grenadier with Mini Grenade Launcher Last Messages --------------- 04758_ Aluminum Leg destroyed. 04758_ Acquired Hrd. Light Armor Plating. 04759_ as-44277 destroyed. 04759_ EXIT=FOUND 04760_ as-40980 destroyed. 04760_ as-46385 destroyed. 04760_ K-01 Serf collects debris. 04762_ U-05 Engineer builds a Wall. 04763_ Aluminum Leg destroyed. 04763_ Hrd. Light Armor Plating destroyed. 04763_ D-53 Grenadier destroyed. 04764_ The unstable cave ceiling collapses. 04764_ Aluminum Leg destroyed. 04765_ K-01 Serf collects debris. 04765_ Ion Engine destroyed. 04765_ U-05 Engineer destroyed. 04765_ R-06 Scavenger collects Terrain Scan Processor. 04766_ The unstable cave ceiling collapses. 04766_ K-01 Serf collects debris. 04767_ The unstable cave ceiling collapses. Map ----- +----------------------------------------------------+ | ???????????????????????????????? | | ???????????????????????????????? | | ???????????????????????????????? | | ???????????????????????????????? | | ???????????????????????????????? | | ???????????????????????????????? | | ???????????????????????????????? | | ???????????????????????????????? | | ???????????????????????????????? | | ???? #??????????????????????? | | ???? ##????????????????????? | | ??? ?????????????????? | | ???? < ????????????????? | | ???? a ????????????????? | | ???? % ?????????????????? | | ???? % ??????????????????? | | ????# ##?????????????????? | | ???## #?????????????????? | | ???# #?????????????????? | | ??## ##?????????????????? | | ?## #?????????????????? | | ## #?????????????????? | | ## k#??????????????????? | | k ##?????????????????? | | # k######??????????????? | | @ dk r% ##??????????????? | | # # ### ##??????????????? | | ###?????????????????? | | # # #???????????????????? | | ### ####???????????????????? | | ??## ??????????????????????? | | ???# ?????????????????????? | | ???# ?????????????????????? | | ???# < #????????????????????? | | ???# #????????????????????? | | ???########????????????????????? | | ???????????????????????????????? | | | | | | | | | | | | | | | | | | | | | | | | | | | +----------------------------------------------------+ Best States ------------- Heat Dissipation 25 Energy Generation 10 Energy Capacity 250 Matter Stores 300 Matter Capacity 300 Sight Range 16 Terrain Scan Range 16 Terrain Scan Density 10 Armor Coverage 150 Evasion (%) 55 Item Schematics ----------------- None Robot Schematics ------------------ None Fabricated ------------ Nothing Alien Tech Used ----------------- None Achievements -------------- Quick And Dirty Challenges ------------ None Game ------ Seed InsulationImprovedFalx Manual? 0 Play Time 01:00:24 Cumulative 13.0 hours Start 2024.06.07 @ 17:08:33 End 2024.06.07 @ 23:48:01 Sessions 7 Manual Loads 0 Difficulty Rogue Special Mode None Game No. 6 Rogue 4 Adventurer 0 Explorer 2 Win Type - Total 0 Types 0/0/0/0/0/0/0/0/0 Lore% 15 Gallery% 12 Achievement% 12 Wizard Run 0 Options --------- Layout 0 ASCII 0 Keyboard 0 Movement Mouse Keybinds 0 Fullscreen 1 Font 24/Crisp Map View 56x25 Zoom Use 96% Tactical HUD 1 Map Filters NONE Filters NONE Steam 1 RUN: 24d57c7f-5fb5-47ee-a5b2-c253a24f7b21